Cogmind - Beta 14 --- EXPLORER MODE // 2024.08.18 @ 22:46:06 Player: DaNachoSteve Result: Destroyed by Y-45 Defender with Heavy Assault Rifle Performance ------------- Evolutions (0) 0 Regions Visited (2) 400 Robots Destroyed (28) 140 Value Destroyed (521) 521 Prototype IDs (4) 80 Alien Tech Used (0) 0 Bonus (0) 0 TOTAL SCORE: 1141 Bonus ------- None Cogmind --------- Core Integrity 0/250 Matter 290/300 Energy 80/100 System Corruption 0% Temperature Cool (9) Movement Rolling (115) Ox1 Location -10/Mines Parts ------- > --- POWER (1) -------- (None) > --- PROPULSION (2) --- Compact Wheel > --- UTILITY (3) ------ Large Storage Unit Targeting Computer Weapon Shielding > --- WEAPON (2) ------- (None) > --- INVENTORY (15) --- Compact Wheel Heat Sink High-capacity Battery (250) Seismic Detector Assault Rifle Light Assault Rifle Datajack Datajack Mining Laser Peak State ------------ > --- POWER ------------ Light Ion Engine > --- PROPULSION ------- Compact Wheel Compact Wheel > --- UTILITY ---------- Large Storage Unit Targeting Computer Weapon Shielding > --- WEAPON ----------- EM Pulse Gun EM Pulse Gun > --- INVENTORY -------- Ion Engine Compact Wheel Compact Wheel Heat Sink High-capacity Battery Seismic Detector Assault Rifle Light Assault Rifle Datajack Datajack [Rating: 9] Favorites ----------- Power Light Ion Engine Engine Light Ion Engine Propulsion Compact Wheel Treads Light Treads Wheel Compact Wheel Utility Weapon Shielding Device Seismic Detector Storage Large Storage Unit Processor Targeting Computer Protection Weapon Shielding Weapon EM Pulse Gun Energy Gun EM Pulse Gun Ballistic Gun Light Assault Rifle Build | -11 -10 -10 ------- Run | Yrd Mat Min Slots Evolved 1 | . 1 . Power . | . . . Propulsion . | . . . Utility 1 | . 1 . Weapon . | . . . Parts Attached 26 | 7 18 1 Power 4 | 1 3 . Engine 4 | 1 3 . Core . | . . . Reactor . | . . . Propulsion 7 | 2 4 1 Treads 2 | 2 . . Leg . | . . . Wheel 5 | . 4 1 Hover . | . . . Flight . | . . . Utility 7 | 2 5 . Device 1 | 1 . . Storage 2 | 1 1 . Processor 1 | . 1 . Hackware . | . . . Protection 3 | . 3 . Artifact . | . . . Weapon 8 | 2 6 . Energy Gun 6 | 2 4 . Energy Cannon . | . . . Ballistic Gun 2 | . 2 . Ballistic Cannon . | . . . Launcher . | . . . Special Weapon . | . . . Impact Weapon . | . . . Slashing Weapon . | . . . Piercing Weapon . | . . . Special Melee Weapon . | . . . Unidentified Prototypes . | . . . Parts Lost 6 | . 1 5 Power 1 | . . 1 Propulsion 2 | . . 2 Utility 1 | . 1 . Weapon 2 | . . 2 Highest Loss Streak 5 | . 1 5 To Critical Strikes . | . . . Average Slot Usage (%) 99 | . 98 99 Engine 11 | . 11 12 Treads 9 | . 14 . Wheel 14 | . 10 25 Storage 12 | . 12 12 Processor 8 | . 6 12 Protection 16 | . 17 12 Energy Gun 23 | . 23 24 Ballistic Gun 1 | . 1 . Peak Build Rating 9 | 7 9 9 Average Rating 7 | 4 7 8 On Entrance 5 | . 7 8 Naked Turns . | . . . Heaviest Build 30 | 18 30 30 Greatest Support 40 | 40 40 32 Greatest Overweight (x) 8 | . 8 1 Average Overweight (x) . | . . . Largest Inventory Capacity 15 | 10 15 15 Average Capacity 12 | 9 11 15 Most Carried 11 | 8 11 10 Average Carried 6 | 4 5 9 Final Capacity 15 | 10 15 15 Final Carried 9 | 5 9 9 Class Distribution -------------------- 100% | Hacker-Mutant Dominant Class ---------------- Hacker-Mutant | -10/Materials Hacker-Mutant | -10/Mines Resources | -11 -10 -10 ----------- Run | Yrd Mat Min Matter Collected 441 | 173 232 36 Remotely . | . . . Salvage Created 899 | . 863 36 Parts 50 | . 45 5 Haulers Intercepted 2 | . 2 . Recyclers Shooed . | . . . Parts Field Recycled . | . . . Retrieved Matter . | . . . Parts Self-Destructed . | . . . Prevented . | . . . Kills | -11 -10 -10 ------- Run | Yrd Mat Min Combat Hostiles Destroyed 17 | . 15 2 Guns 11 | . 9 2 AOE 5 | . 5 . Classes Destroyed 6 | . 6 . Worker 2 | . 2 . Builder 4 | . 4 . Hauler 2 | . 2 . Watcher 3 | . 3 . Swarmer 6 | . 4 2 Grunt 11 | . 11 . Best Kill Streak 7 | . 7 2 Combat Bots Only 4 | . 4 2 Max Kills in Single Turn 2 | . 2 1 Gunslinging 1 | . 1 . Exploded 2 | . 2 . Melee . | . . . Uniques/NPCs Destroyed . | . . . Combat | -11 -10 -10 -------- Run | Yrd Mat Min Hostile Shots Fired 106 | . 81 25 Missed 23 | . 21 2 Damage Taken 798 | . 400 398 Core 254 | . 51 203 Absorbed by Shields . | . . . Redirected to Shielding 47 | . 28 19 Ignored by Resistances 501 | . 267 234 Regen/Repaired (Parts) 21 | . 21 . Core Remaining (%) 100 | 100 . . Volleys Fired 59 | . 56 3 Largest 2 | . 2 2 Hottest 80 | . 80 80 Shots Fired 118 | . 112 6 Gun 118 | . 112 6 Cannon . | . . . Launcher . | . . . Special . | . . . Kinetic 4 | . 4 . Thermal . | . . . Explosive . | . . . Electromagnetic 114 | . 108 6 Robot Hit Streak 17 | . 17 4 Robot Miss Streak 3 | . 3 1 Penetration Max . | . . . Secondary Targets 5 | . 4 1 Max Gunslinging Chain 1 | . 1 1 Shots Hit Robots 96 | . 92 4 Core Hits 36 | . 34 2 Critical Kills . | . . . Critical Parts Destroyed . | . . . Critical Strikes 4 | . 3 1 Corrupt 4 | . 3 1 Melee Attacks . | . . . Impact . | . . . Slashing . | . . . Piercing . | . . . Sneak Attacks . | . . . Combat Hostiles . | . . . Follow-up Attacks . | . . . Damage Inflicted 1875 | . 1832 43 Guns 1358 | . 1315 43 Cannons . | . . . Explosions 512 | . 512 . Melee . | . . . Ramming 5 | . 5 . Kinetic 22 | . 22 . Thermal 512 | . 512 . Explosive . | . . . Electromagnetic 1336 | . 1293 43 Impact . | . . . Slashing . | . . . Piercing . | . . . Highest Corruption . | . . . Average Corruption . | . . . Corruption Purged . | . . . Corruption Blocked . | . . . Overload Shots . | . . . Overflow Damage 24 | . 24 . Projectiles . | . . . Explosions 24 | . 24 . Melee . | . . . Knockbacks . | . . . Impact . | . . . Kinetic . | . . . Secondary . | . . . Self-Inflicted Damage 40 | . 40 . Shots 2 | . 2 . Rammed 1 | . 1 . Targets Rammed 1 | . 1 . Kicked . | . . . Crushed . | . . . Highest Temperature 485 | . 485 63 Average Temperature 136 | . 141 33 Received Heat Transfer 312 | . 258 54 Effects 5 | . 5 . Shutdowns 2 | . 2 . Energy Bleed 2 | . 2 . Short Circuit 1 | . 1 . Siege Activations . | . . . Robots Corrupted 1 | . 1 . Combat Hostiles 1 | . 1 . Parts Fried 10 | . 10 . Impact Corruptions . | . . . Robots Melted . | . . . Combat Hostiles . | . . . Parts Melted 2 | . 2 . Heat Transferred 800 | . 800 . Parts Sabotaged . | . . . Parts Stolen . | . . . Parts Stripped . | . . . Power Chain Reactions 7 | . 7 . Alert | -11 -10 -10 ------- Run | Yrd Mat Min Peak Influence 237 | . 237 65 Initial 15 | . . 15 Average 72 | . 107 12 Maximum Alert Level 1 | . 1 . Low Security (%) 91 | 100 86 100 Level 1 8 | . 13 . Level 2 . | . . . Level 3 . | . . . Level 4 . | . . . Level 5 . | . . . High Security . | . . . Max Security . | . . . Squads Dispatched 4 | . 4 . Investigation 4 | . 4 . Extermination . | . . . Reinforcement . | . . . Assault . | . . . Garrison . | . . . Intercept . | . . . Searches Triggered . | . . . Construction Impeded . | . . . Haulers Reinforced . | . . . Active Scanning Responses . | . . . Cargo Convoy Interrupts . | . . . Stealth | -11 -10 -10 --------- Run | Yrd Mat Min Distress Signals 4 | . 4 . Communications Jammed . | . . . Distress Signals . | . . . Times Spotted 30 | . 24 6 Peak Tracking Total 6 | . 6 4 Tactical Retreats . | . . . Traps | -11 -10 -10 ------- Run | Yrd Mat Min Traps Triggered 2 | . 2 . Indirectly . | . . . Trap Hack Attempts . | . . . Triggered . | . . . Disarmed . | . . . Reprogrammed . | . . . Reused . | . . . Traps Extracted . | . . . Installed . | . . . Triggered . | . . . Machines | -11 -10 -10 ---------- Run | Yrd Mat Min Machines Disabled . | . . . Max in Single Turn . | . . . Machines Repaired . | . . . Machines Dismantled . | . . . Machines Sabotaged . | . . . Overloaded Fab Kills . | . . . Hacking | -11 -10 -10 --------- Run | Yrd Mat Min Machines Accessed 8 | . 8 . Terminals 6 | . 6 . Fabricators . | . . . Repair Stations 1 | . 1 . Recycling Units 1 | . 1 . Scanalyzers . | . . . Garrison Access . | . . . Total Hacks 25 | . 25 . Successful 18 | . 18 . Failed 7 | . 7 . Catastrophic 2 | . 2 . Database Lockouts . | . . . Manual . | . . . Terminals 18 | . 18 . Fabricators . | . . . Repair Stations 5 | . 5 . Recycling Units 2 | . 2 . Scanalyzers . | . . . Garrison Access . | . . . Terminal Hacks 13 | . 13 . Record 1 | . 1 . Prototype ID Bank 2 | . 2 . Emergency Access Points 2 | . 2 . Alert Level 2 | . 2 . Locate Traps 3 | . 3 . Dispatch Records 1 | . 1 . Recall Investigation 1 | . 1 . Zone Layout 1 | . 1 . Fabricator Hacks . | . . . Repair Station Hacks 3 | . 3 . Scan Component 2 | . 2 . Repair 1 | . 1 . Recycling Unit Hacks 2 | . 2 . Report Inventory 1 | . 1 . Retrieve Matter 1 | . 1 . Scanalyzer . | . . . Garrison Access Hacks . | . . . Unauthorized Hacks . | . . . Terminals . | . . . Fabricators . | . . . Repair Stations . | . . . Recycling Units . | . . . Scanalyzers . | . . . Garrison Access . | . . . Data Cores Recovered . | . . . Used . | . . . Hacking Detections 7 | . 7 . Full Trace Events 6 | . 6 . Feedback Events . | . . . Feedback Blocked . | . . . Robot Schematics Acquired . | . . . Robots Built . | . . . Authchips . | . . . Time . | . . . Total Robot Build Rating . | . . . Part Schematics Acquired . | . . . Parts Built . | . . . Authchips . | . . . Time . | . . . Total Part Build Rating . | . . . Parts Repaired 1 | . 1 . Time 13 | . 13 . Parts Recycled . | . . . Recycled Matter . | . . . Retrieved Matter . | . . . Retrieved Components . | . . . Parts Scanalyzed . | . . . Part Schematics Acquired . | . . . Parts Damaged . | . . . Bothacking | -11 -10 -10 ------------ Run | Yrd Mat Min Used RIF Installer . | . . . Robots Hacked . | . . . Non-combat . | . . . Combat . | . . . Robot Hacks Applied . | . . . Relay Couplers Released . | . . . Fabnet Peak Effective % . | . . . Robots Rewired . | . . . Allies Hacked . | . . . Hacks Repelled . | . . . Allies | -11 -10 -10 -------- Run | Yrd Mat Min Total Allies 1 | . . 1 Largest Group 1 | . . 1 Highest-Rated Group 31 | . . 31 Highest-Rated Ally 31 | . . 31 Total Orders . | . . . Ally Attacks 3 | . . 3 Total Damage 33 | . . 33 Kills . | . . . Allies Corrupted . | . . . Allies Melted . | . . . Intel | -11 -10 -10 ------- Run | Yrd Mat Min Robot Analysis Total . | . . . Derelict Logs Recovered . | . . . Drone Launches . | . . . Drone Recoveries . | . . . Exploration | -11 -10 -10 ------------- Run | Yrd Mat Min Turns Passed 1635 | 99 1042 494 Spaces Moved 1069 | 55 586 428 Core 9 | 6 3 . Treads 288 | 49 239 . Legs . | . . . Wheels 772 | . 344 428 Hover . | . . . Flight . | . . . Fastest Speed 50 | 50 100 100 Average Speed 123 | 148 137 100 Slowest Speed 450 | 160 450 115 Overloaded Moves . | . . . Propulsion Burnouts . | . . . Robots Hopped . | . . . Cave-ins Triggered . | . . . Exploration Rate (%) 51 | 4 85 64 Regions Visited 2 Branch Regions 1 Pre-discovered Areas . | . . . Known Exits Taken 2 | 1 1 . Unknown Exits Taken . | . . . Scrap Searched . | . . . Spaces Dug . | . . . Terrain Destroyed 32 | . 32 . Melee . | . . . Projectile . | . . . AOE 32 | . 32 . Terrain Rammed . | . . . Walls Destroyed . | . . . Machines Disabled . | . . . Actions | -11 -10 -10 --------- Run | Yrd Mat Min Total 1267 | 73 706 488 Wait 77 | . 22 55 Move 1067 | 54 585 428 Hop . | . . . Pick Up 30 | 12 17 1 Fast Attach . | . . . Attach 14 | 7 6 1 Detach . | . . . Swap 12 | . 12 . Drop 7 | . 7 . Fire 59 | . 56 3 Melee . | . . . Ram 1 | . 1 . Kick . | . . . Crush . | . . . Escape Stasis . | . . . Rewire . | . . . Trap . | . . . Miscellaneous . | . . . Route ------- -11/Scrapyard -10/Materials (discovered 4 exits: *Mat x3 / *Min) -10/Mines (discovered 1 exit: *Mat) History --------- Turn | Location | Event 14 | -11/Scrapyard | Identified exit to Materials 14 | -11/Scrapyard | Discovered exit to Materials (range 16) 100 | -11/Scrapyard | Entered Materials 100 | -10/Materials | Evolved 1 slot: Utility x1 209 | -10/Materials | Identified exit to Materials 209 | -10/Materials | Discovered exit to Materials (range 13) 312 | -10/Materials | Build established: Hacker-Mutant 821 | -10/Materials | Discovered exit to Materials (range 10) 937 | -10/Materials | Discovered exit to Materials (range 16) 970 | -10/Materials | Repaired Weapon Shielding 1069 | -10/Materials | Identified exit to Mines 1069 | -10/Materials | Discovered exit to Mines (range 14) 1142 | -10/Materials | Entered Mines 1157 | -10/Mines | Met a Derelict bent on vengeance 1294 | -10/Mines | Discovered exit to Materials (range 10) 1408 | -10/Mines | Received a Mining Laser from a helpful Derelict 1575 | -10/Mines | Assembled infested the area 1631 | -10/Mines | Core integrity fell below 50% 1636 | -10/Mines | Core integrity fell below 20% 1636 | -10/Mines | Destroyed by Y-45 Defender with Heavy Assault Rifle Last Messages --------------- I'll cover you." Move into an ally to swap places with them. Acquired Mining Laser. 1V-CBW(g): "Mining lasers are a lot more useful than you might think..." S-10 Pest destroyed. Switching to secondary target: S-10 Pest. S-10 Pest destroyed. Acquired 16 matter. Acquired 20 matter. K-01 Serf cleans the Pressure Siphon. ALERT: Infestation in the mines, dispatching Demolisher response squad. C-30 ARC bursts open, deploying its payload. D-53 Grenadier unfolds itself. EM Pulse Gun destroyed. 1V-CBW(g) destroyed. The unstable cave ceiling collapses. Ion Engine destroyed. Com. Wheel destroyed. Map ----- +----------------------------------------------------+ | | | | | | | | | | | | | | | ????????????????????????????????????????? | | ????????????????????????????????????????? | | ????????????????????????????????????????? | | ????????????????????????????????????????? | | ????????????????????????????????????????? | | ????????????????????????????????????????? | | ????????????????????????????????????????? | | ?????????????????####???????????????????? | | ????????????????? ????????????????????? | | ????????????????? ????????????????????? | | ????????????????? #????????????????????? | | ????????????????? ##???????????????????? | | ????????????????? ????????????????????? | | ?????#####???#### #????????????????????? | | ????##"Y "#?## ##???????????????????? | | ????#!/ !|## #???????????????????? | | ????#!! Y!! ##??????????????????? | | ?????# #??????????????????? | | ????###+ @ #???????????????????? | | ???## #???????????????????? | | ???# #??????????????###??? | | ???# #??????????????# ??? | | ???## ##??????????????# #??? | | ????## d####???????????????# #??? | | ?????### #??????????????#### #??? | | ???????###### #??????######### #??? | | ??????????### d ##?????# ###??? | | ??????????# ####### ####### #????? | | ??????????# ### "%" #?????# #????# | | ????????? ??# #### ####????## ##???# | | ????????## ??# ##??# #??????## ##??# | | ?????????##??# #???# #??????# #### | | ?????????????## ##???# #??????# | | ???#########??###????# #??##### | | ???# """ #?????????# #### | | ???# """ #?????????########## #??# | | ???# """ #??????????????????# #??? | | ???# #?????????????????# #??? | | ???# #?????????????????# #??? | | ???#### ####?????????????????## ##### | | ??????# #?????????????????????# ###?# | | ??????# ######?????????######## #????# | | ??????# #?????????# ? % ?????# | +----------------------------------------------------+ Best States ------------- Heat Dissipation 25 Energy Generation 10 Energy Capacity 250 Matter Stores 300 Matter Capacity 300 Sight Range 16 Terrain Scan Density 10 Armor Coverage 150 Resistance: KI 35 Resistance: TH 35 Resistance: EX 35 Resistance: EM 35 Resistance: I 35 Resistance: S 35 Resistance: P 35 Weapon Shielding 33 Evasion (%) 40 Targeting Accuracy 5 Recoil Reduction 2 Offensive Hacking 20 Item Schematics ----------------- None Robot Schematics ------------------ None Fabricated ------------ Nothing Alien Tech Used ----------------- None Achievements -------------- Party Time Power Corrupts Challenges ------------ None Game ------ Seed GravitonMetafieldDrivehammer Manual? 0 Play Time 00:23:27 Cumulative 3.4 hours Start 2024.08.18 @ 22:24:47 End 2024.08.18 @ 22:46:06 Sessions 1 Manual Loads 0 Difficulty Explorer Special Mode None Game No. 4 Rogue 3 Adventurer 0 Explorer 1 Win Type - Total 0 Types 0/0/0/0/0/0/0/0/0 Lore% 0 Gallery% 7 Achievement% 7 Wizard Run 0 Options --------- Layout 1 ASCII 0 Keyboard 0 Movement Arrows Keybinds 0 Fullscreen 1 Font 16/SmallcapsGlow Map View 55x38 Zoom Use 0% Tactical HUD 0 Map Filters NONE Filters NONE Steam 1 RUN: 74b77cf5-287e-4d68-b30f-5ad0a04e5e89